fUSD/lending_fUSD_20241121
["ID","MTS","AMOUNT","RATE_DAILY","PERIOD"]
[342961125,1732227054557,-171.151253,0.00038904,14]
[342961126,1732227054567,-171.151253,0.00038904,14]
[342961127,1732227054578,-500.0,0.00038904,11]
[342961128,1732227054588,-500.0,0.00038904,11]
[342961129,1732227054598,-491.12,0.00038904,11]
[342961130,1732227054607,-151.0,0.00038904,14]
[342961131,1732227054618,-500.0,0.00038904,11]
[342961132,1732227054627,-500.0,0.00038904,11]
[342961133,1732227054636,-500.0,0.00038904,11]
[342961134,1732227054646,-218.91731302,0.00038904,11]
[342961135,1732227054655,-157.92,0.00038904,11]
[342961136,1732227054664,-336.71,0.00038904,11]
[342961137,1732227054674,-240.67,0.00038904,11]
[342961138,1732227054684,-151.0,0.00038904,14]
[342961139,1732227054693,-213.11,0.00038904,11]
[342961140,1732227054703,-500.0,0.00038904,11]
[342961141,1732227054713,-500.0,0.00038904,11]
[342961142,1732227054722,-500.0,0.00038904,11]
[342961143,1732227054732,-500.0,0.00038904,11]
[342961144,1732227054741,-500.0,0.00038904,11]
[342961145,1732227054750,-500.0,0.00038904,11]
[342961146,1732227054759,-500.0,0.00038904,11]
[342961147,1732227054768,-500.0,0.00038904,11]
[342961148,1732227054779,-500.0,0.00038904,11]
[342961149,1732227054788,-151.0,0.00038904,14]
[342961150,1732227054797,-169.808157,0.00038904,14]
[342961151,1732227054807,-500.0,0.00038904,11]
[342961152,1732227054817,-500.0,0.00038904,11]
[342961153,1732227054828,-500.0,0.00038904,11]
[342961154,1732227054837,-500.0,0.00038904,11]
[342961155,1732227054847,-500.0,0.00038904,11]
[342961156,1732227054857,-500.0,0.00038904,11]
[342961157,1732227054867,-500.0,0.00038904,11]
[342961158,1732227054877,-500.0,0.00038904,11]
[342961159,1732227054887,-500.0,0.00038904,11]
[342961160,1732227054896,-241.772697,0.00038904,14]
[342961161,1732227054906,-241.772697,0.00038904,14]
[342961162,1732227054915,-500.0,0.00038904,11]
[342961163,1732227054924,-500.0,0.00038904,11]
[342961164,1732227054934,-500.0,0.00038904,11]
[342961165,1732227054943,-530.23,0.00038904,11]
[342961166,1732227054952,-151.0,0.00038904,14]
[342961167,1732227054961,-500.0,0.00038904,11]
[342961168,1732227054971,-500.0,0.00038904,11]
[342961169,1732227054980,-280.53410927,0.00038904,11]
[342961170,1732227054989,-500.0,0.00038904,11]
[342961171,1732227054999,-500.0,0.00038904,11]
[342961172,1732227055008,-265.103568,0.00038904,14]
[342961173,1732227055018,-500.0,0.00038904,11]
[342961174,1732227055027,-265.103568,0.00038904,14]
[342961175,1732227055036,-500.0,0.00038904,11]
[342961176,1732227055045,-500.0,0.00038904,11]
[342961177,1732227055055,-500.0,0.00038904,11]
[342961178,1732227055065,-596.92,0.00038904,11]
[342961179,1732227055075,-500.0,0.00038904,11]
[342961180,1732227055084,-500.0,0.00038904,11]
[342961181,1732227055094,-500.0,0.00038904,11]
[342961182,1732227055144,-500.0,0.00038904,11]
[342961183,1732227055154,-257.22,0.00038904,11]
[342961184,1732227055164,-500.0,0.00038904,11]
[342961185,1732227055174,-500.0,0.00038904,11]
[342961186,1732227055184,-500.0,0.00038904,120]
[342961187,1732227055194,-500.0,0.00038904,11]
[342961188,1732227055204,-641.05,0.00038904,11]
[342961189,1732227055214,-151.0,0.00038904,14]
[342961190,1732227055223,-173.410895,0.00038904,14]
[342961191,1732227055233,-151.0,0.00038904,14]
[342961192,1732227055242,-1536.838259,0.00038904,14]
[342961193,1732227055252,-173.410895,0.00038904,14]
[342961194,1732227055261,-1536.838259,0.00038904,14]
[342961195,1732227055271,-151.0,0.00038904,14]
[342961196,1732227055281,-151.0,0.00038904,14]
[342961197,1732227055291,-1581.521221,0.00038904,14]
[342961198,1732227055300,-1581.521221,0.00038904,14]
[342961199,1732227055309,-1214.69,0.00038952,2]
[342961200,1732227055319,-2500.0,0.00038975,30]
[342961201,1732227055330,-190.27,0.00038984,2]
[342961202,1732227055340,-160.0,0.00039,120]
[342961203,1732227055350,-450.0,0.00039,2]
[342961204,1732227055359,-500.0,0.00039076,11]
[342961205,1732227055371,-447.87,0.00039076,11]
[342961206,1732227055380,-500.0,0.00039076,11]
[342961207,1732227055390,-500.0,0.00039076,11]
[342961208,1732227055400,-500.0,0.00039076,11]
[342961209,1732227055409,-500.0,0.00039076,11]
[342961210,1732227055419,-500.0,0.00039076,11]
[342961211,1732227055428,-500.0,0.00039076,11]
[342961212,1732227055438,-500.0,0.00039076,11]
[342961213,1732227055447,-500.0,0.00039076,11]
[342961214,1732227055457,-2348.69,0.00039076,11]
[342961215,1732227055466,-711.86,0.00039076,11]
[342961216,1732227055476,-500.0,0.00039076,11]
[342961217,1732227055488,-177.8,0.00039076,11]
[342961218,1732227055500,-500.0,0.00039076,11]
[342961219,1732227055509,-500.0,0.00039076,11]
[342961220,1732227055518,-500.0,0.00039076,11]
[342961221,1732227055527,-500.0,0.00039076,11]
[342961222,1732227055537,-500.0,0.00039076,11]
[342961223,1732227055546,-500.0,0.00039076,11]
[342961224,1732227055555,-500.0,0.00039077,11]
[342961225,1732227055564,-500.0,0.00039077,11]
[342961226,1732227055574,-500.0,0.00039077,11]
[342961227,1732227055583,-500.0,0.00039077,11]
[342961228,1732227055592,-675.19,0.00039077,11]
[342961229,1732227055600,-510.89,0.00039077,11]
[342961230,1732227055610,-500.0,0.00039077,11]
[342961231,1732227055619,-500.0,0.00039077,11]
[342961232,1732227055628,-500.0,0.00039077,11]
[342961233,1732227055637,-2017.39,0.00039077,11]
[342961234,1732227055646,-500.0,0.00039077,11]
[342961235,1732227055655,-500.0,0.00039077,11]
[342961236,1732227055666,-507.51,0.00039077,11]
[342961237,1732227055675,-500.0,0.00039077,11]
[342961238,1732227055684,-500.0,0.00039077,11]
[342961239,1732227055693,-360.8,0.00039077,11]
[342961240,1732227055703,-452.82,0.00039077,11]
[342961241,1732227055712,-500.0,0.00039077,11]
[342961242,1732227055722,-500.0,0.00039077,11]
[342961243,1732227055732,-1307.82,0.00039077,11]
[342961244,1732227055741,-1545.0,0.000391,3]
[342961245,1732227055751,-151.0,0.00039177,14]
[342961246,1732227055761,-151.0,0.00039177,14]
[342961247,1732227055770,-151.0,0.00039177,14]
[342961248,1732227055780,-151.0,0.00039177,14]
[342961249,1732227055790,-151.0,0.00039177,14]
[342961250,1732227055799,-151.0,0.00039177,14]
[342961251,1732227055809,-151.0,0.00039177,14]
[342961252,1732227055818,-237.498291,0.00039177,14]
[342961253,1732227055829,-237.498291,0.00039177,14]
[342961254,1732227055838,-500.0,0.00039177,11]
[342961255,1732227055848,-500.0,0.00039177,11]
[342961256,1732227055858,-396.98,0.00039177,11]
[342961257,1732227055869,-500.0,0.00039177,11]
[342961258,1732227055879,-500.0,0.00039177,11]
[342961259,1732227055888,-500.0,0.00039177,11]
[342961260,1732227055898,-500.0,0.00039177,11]
[342961261,1732227055908,-409.06,0.00039177,11]
[342961262,1732227055917,-514.72,0.00039177,11]
[342961263,1732227055927,-235.72,0.00039177,11]
[342961264,1732227055937,-232.32,0.00039177,11]
[342961265,1732227055946,-500.0,0.00039177,11]
[342961266,1732227055955,-549.75,0.00039177,11]
[342961267,1732227055964,-324.68,0.00039177,11]
[342961268,1732227055973,-188.16,0.00039177,11]
[342961269,1732227055982,-500.0,0.00039177,11]
[342961270,1732227055991,-515.09,0.00039177,11]
[342961271,1732227056001,-481.22,0.00039177,11]
[342961272,1732227056010,-500.0,0.00039177,11]
[342961273,1732227056020,-208.36,0.00039177,11]
[342961274,1732227056029,-228.49,0.00039177,11]
[342961275,1732227056038,-303.89796869,0.00039177,11]
[342961276,1732227056047,-500.0,0.00039177,11]
[342961277,1732227056056,-500.0,0.00039177,11]
[342961278,1732227056067,-368.9,0.00039177,11]
[342961279,1732227056076,-500.0,0.00039177,11]
[342961280,1732227056086,-500.0,0.00039177,11]
[342961281,1732227056095,-500.0,0.00039177,11]
[342961282,1732227056105,-500.0,0.00039177,11]
[342961283,1732227056114,-494.44,0.00039177,11]
[342961284,1732227056123,-500.0,0.00039177,11]
[342961285,1732227056134,-238.64,0.00039177,11]
[342961286,1732227056144,-274.94,0.00039177,11]
[342961287,1732227056154,-500.0,0.00039177,11]
[342961288,1732227056164,-556.4,0.00039177,11]
[342961289,1732227056174,-375.8,0.00039177,11]
[342961290,1732227056183,-500.0,0.00039177,11]
[342961291,1732227056194,-500.0,0.00039177,11]
[342961292,1732227056203,-193.06,0.00039177,11]
[342961293,1732227056213,-500.0,0.00039177,11]
[342961294,1732227056223,-307.54,0.00039177,11]
[342961295,1732227056233,-408.48,0.00039177,11]
[342961296,1732227056242,-500.0,0.00039177,11]
[342961297,1732227056252,-500.0,0.00039177,11]
[342961298,1732227056261,-500.0,0.00039177,11]
[342961299,1732227056271,-540.81162151,0.00039177,11]
[342961300,1732227908153,48239.0,0.00011,2]
[342961301,1732227908182,69850.0,0.00011,2]
[342961302,1732227908213,12069.11256157,0.00011,2]
[342961303,1732227908270,1000.0,0.00011,2]
[342961304,1732227908330,1000000.0,0.00011,2]
[342961305,1732227908383,76983.40945395,0.00011,2]
[342961307,1732227954514,70840.59453156,9.336e-05,2]
[342961311,1732228146122,-3433.328766,0.000145,3]
[342961312,1732228146142,-0.009506,0.00015342,2]
[342961339,1732228231705,-155.920494,0.00015342,2]
[342961340,1732228231714,-219.94130914,0.00022,2]
[342961341,1732228231725,-13592.42714837,0.00022,2]
[342961347,1732228237658,-2448.875,0.00022,2]
[342961348,1732228237752,-3276.39215583,0.00022,2]
[342961349,1732228237763,-14862.84542417,0.000225,2]
[342961350,1732228237774,-2036.79368486,0.000225,2]
[342961351,1732228237783,-155.93,0.00025479,2]
[342961352,1732228237793,-1032.48,0.00035547,2]
[342961353,1732228237803,-155.93,0.00035616,2]
[342961354,1732228237813,-700.0,0.00036,10]
[342961355,1732228237828,-500.0,0.00036536,2]
[342961356,1732228237837,-1000.0,0.00036536,2]
[342961357,1732228237847,-200.0,0.00036687,2]
[342961358,1732228237857,-1785.1339805,0.0003669,2]
[342961359,1732228237869,-9168.1538775,0.0003669,2]
[342961360,1732228237911,-961.30196862,0.0003669,2]
[342961392,1732228239542,-6141.13524812,0.0003669,2]
[342961393,1732228239554,-1097.1325432,0.0003669,2]
[342961395,1732228239809,-1523.84917761,0.0003669,2]
[342961404,1732228242804,-3223.29320445,0.0003669,2]
[342961405,1732228242813,-148.60679554,0.00036804,2]
[342961406,1732228242828,-41.66320446,0.00036804,2]
[342961407,1732228242838,-1399.04,0.00036832,2]
[342961408,1732228242848,-1998.78,0.00036879,2]
[342961409,1732228242857,-150.14,0.00036946,2]
[342961410,1732228242868,-150.0,0.0003696,2]
[342961411,1732228242879,-151.92,0.00037,120]
[342961412,1732228242889,-250.0,0.00037033,2]
[342961413,1732228242902,-165.81,0.00037046,2]
[342961414,1732228242912,-6308.884649,0.000371,2]
[342961415,1732228242921,-592.08,0.00037161,2]
[342961416,1732228242931,-636.84,0.00037207,120]
[342961417,1732228242940,-1000.0,0.00037246,2]
[342961418,1732228242949,-6924.35243888,0.00037247,120]
[342961419,1732228243044,-1632.61725553,0.00037247,120]
[342961420,1732228243053,-750.97140266,0.00037247,2]
[342961421,1732228243063,-2294.65,0.00037247,2]
[342961422,1732228243072,-2387.4626023,0.00037247,2]
[342961423,1732228243081,-20.69450193,0.00037247,30]
[342961432,1732228245767,-129.30549807,0.00037247,30]
[342961433,1732228245776,-441.51092174,0.00037247,2]
[342961434,1732228245786,-300.0,0.00037247,2]
[342961435,1732228245795,-250.0,0.00037489,120]
[342961436,1732228245805,-282.63,0.00037512,120]
[342961437,1732228245814,-288.78128019,0.00037811,2]
[342961438,1732228245865,-743.69871981,0.00037811,2]
[342961439,1732228245875,-250.0,0.00037835,2]
[342961440,1732228245884,-678.14139368,0.00037899,50]
[342961441,1732228245903,-439.94460632,0.00037899,50]
[342961442,1732228245912,-177.727,0.00037899,50]
[342961443,1732228245921,-18627.88644368,0.000379,120]
[342961444,1732228245943,-0.41927667,0.000379,120]
[342961445,1732228246114,-717.91000003,0.000379,120]
[342961446,1732228246156,-535.06583601,0.000379,120]
[342961447,1732228246165,-155.84,0.00038146,10]
[342961448,1732228246174,-1323.8849,0.00038156,2]
[342961449,1732228246184,-392.20735341,0.00038156,15]
[342961452,1732229096561,2500.0,0.00024,30]
[342961465,1732229431926,-155.7,0.00015342,2]
[342961466,1732229431937,-155.09,0.00015342,2]
[342961467,1732229431948,-189.67,0.00016712,2]
[342961468,1732229431958,-150.0,0.00016862,2]
[342961469,1732229431968,-151.92,0.00019178,2]
[342961470,1732229431979,-909.21209797,0.0002,2]
[342961471,1732229431991,-3835.1558,0.0002,2]
[342961472,1732229432058,-2312.71278649,0.0002,2]
[342961473,1732229432191,-309.01,0.0002,2]
[342961474,1732229432205,-305.36,0.0002,2]
[342961475,1732229432232,-9565.59978023,0.0002,2]
[342961476,1732229432269,-75903.65999573,0.0002,2]
[342961477,1732229432279,-217.1435,0.00024219,2]
[342961478,1732229432288,-155.09,0.00026401,2]
[342961479,1732229432298,-800.0,0.00026986,120]
[342961480,1732229432309,-519.66,0.00026986,120]
[342961481,1732229432319,-173.18227356,0.00030137,2]
[342961482,1732229432329,-250.0,0.00031,2]
[342961483,1732229432340,-867.26300057,0.000315,30]
[342961484,1732229432351,-230.8632442,0.0003151,30]
[342961485,1732229432363,-700.0,0.0003151,30]
[342961486,1732229432375,-500.0,0.0003151,30]
[342961487,1732229432384,-273.64434943,0.0003151,30]
[342961488,1732229432394,-672.6197758,0.00032,20]
[342961489,1732229432403,-1390.0,0.000328,3]
[342961490,1732229432414,-300.0,0.00033,2]
[342961491,1732229432424,-217.1435,0.00033577,2]
[342961492,1732229432433,-929.23,0.00034751,2]
[342961493,1732229432444,-350.0,0.00035,2]
[342961494,1732229432454,-1000.0,0.000355,15]
[342961495,1732229432468,-23900.0,0.00035698,2]
[342961496,1732229432478,-1000.0,0.000357,15]
[342961497,1732229432488,-250.0,0.00035705,2]
[342961498,1732229432498,-151.92,0.00035814,120]
[342961499,1732229432509,-250.0,0.0003582,120]
[342961500,1732229432519,-268.49,0.00035887,120]
[342961501,1732229432529,-296.04,0.00036014,2]
[342961502,1732229432539,-1000.0,0.0003617,2]
[342961503,1732229432549,-203.16,0.00036241,120]
[342961504,1732229432559,-250.0,0.00036644,2]
[342961505,1732229432569,-500.0,0.00036811,2]
[342961506,1732229432579,-1000.0,0.00036868,2]
[342961507,1732229432589,-400.0,0.00037,2]
[342961508,1732229432599,-1000.0,0.00037,15]
[342961509,1732229432609,-929.23,0.00037015,2]
[342961510,1732229432619,-425.389558,0.000371,23]
[342961511,1732229432628,-1000.0,0.0003715,15]
[342961512,1732229432638,-190.27,0.00037212,2]
[342961513,1732229432648,-232.0,0.00037243,120]
[342961514,1732229432660,-1000.0,0.0003725,15]
[342961515,1732229432670,-1000.0,0.0003734,15]
[342961516,1732229432680,-1000.0,0.0003745,15]
[342961517,1732229432690,-155.09,0.0003746,2]
[342961518,1732229432701,-1000.0,0.000375,15]
[342961519,1732229432711,-150.14,0.00037531,2]
[342961520,1732229432721,-1000.0,0.0003774,15]
[342961521,1732229432731,-287.36,0.00037763,120]
[342961522,1732229432741,-764.41,0.00037969,2]
[342961523,1732229432752,-764.41,0.00037969,2]
[342961524,1732229432762,-764.41,0.00037969,2]
[342961525,1732229432772,-764.41,0.00037969,2]
[342961526,1732229432782,-588.07,0.00037973,2]
[342961527,1732229432792,-2650.20666353,0.00038256,2]
[342961528,1732229432802,-352.334,0.000383,120]
[342961529,1732229432812,-268.49,0.00038471,120]
[342961530,1732229432822,-1099.03935798,0.00038528,15]
[342961531,1732229432832,-1000.0,0.00038601,2]
[342961532,1732229432842,-1000.0,0.00038601,2]
[342961533,1732229432852,-875.0,0.00038601,2]
[342961534,1732229432862,-166.83,0.00038627,2]
[342961535,1732229432872,-894.469,0.00038627,52]
[342961536,1732229432882,-500.0,0.00038628,11]
[342961537,1732229432893,-362.13,0.00038628,11]
[342961538,1732229432903,-547.03,0.00038628,11]
[342961539,1732229432914,-500.0,0.00038628,11]
[342961540,1732229432924,-500.0,0.00038628,11]
[342961541,1732229432934,-500.0,0.00038628,11]
[342961542,1732229432945,-500.0,0.00038628,11]
[342961543,1732229432955,-577.71240191,0.00038628,11]
[342961544,1732229432966,-500.0,0.00038628,11]
[342961545,1732229432976,-500.0,0.00038628,11]
[342961546,1732229432987,-500.0,0.00038628,14]
[342961547,1732229432997,-500.0,0.00038628,11]
[342961548,1732229433008,-179.12593829,0.00038628,11]
[342961549,1732229433018,-486.29498714,0.00038628,11]
[342961550,1732229433030,-170.29,0.00038628,11]
[342961551,1732229433041,-159.34,0.00038628,11]
[342961552,1732229433052,-500.0,0.00038628,11]
[342961553,1732229433063,-500.0,0.00038628,11]
[342961554,1732229433073,-155.5756626,0.00038628,11]
[342961555,1732229433085,-500.0,0.00038628,11]
[342961556,1732229433096,-500.0,0.00038628,11]
[342961557,1732229433108,-355.23,0.00038628,11]
[342961558,1732229433119,-500.0,0.00038628,11]
[342961559,1732229433131,-500.0,0.00038628,11]
[342961560,1732229433147,-500.0,0.00038628,11]
[342961561,1732229433159,-500.0,0.00038628,11]
[342961562,1732229433171,-500.0,0.00038628,11]
[342961563,1732229433183,-500.0,0.00038628,11]
[342961564,1732229433193,-191.6,0.00038628,11]
[342961565,1732229433204,-500.0,0.00038628,11]
[342961566,1732229433215,-500.0,0.00038628,11]
[342961567,1732229433225,-500.0,0.00038628,11]
[342961568,1732229433236,-500.0,0.00038628,11]
[342961569,1732229433246,-500.0,0.00038628,11]
[342961570,1732229433256,-470.66,0.00038628,11]
[342961571,1732229433267,-400.44,0.00038628,11]
[342961572,1732229433278,-500.0,0.00038628,11]
[342961573,1732229433289,-151.0,0.0003863,14]
[342961574,1732229433299,-246.36,0.000387,11]
[342961575,1732229433310,-500.0,0.000387,11]
[342961576,1732229433320,-500.0,0.000387,11]
[342961577,1732229433331,-379.62,0.000387,11]
[342961578,1732229433341,-639.82224097,0.000387,11]
[342961579,1732229433351,-500.0,0.000387,11]
[342961580,1732229433362,-383.69,0.000387,11]
[342961581,1732229433373,-361.92,0.000387,11]
[342961582,1732229433384,-500.0,0.000387,11]
[342961583,1732229433394,-500.0,0.000387,11]
[342961584,1732229433404,-500.0,0.000387,11]
[342961585,1732229433414,-500.0,0.000387,11]
[342961586,1732229433424,-500.0,0.000387,11]
[342961587,1732229433433,-500.0,0.000387,11]
[342961588,1732229433443,-644.75,0.000387,11]
[342961589,1732229433453,-500.0,0.000387,11]
[342961590,1732229433463,-590.79,0.000387,11]
[342961591,1732229433472,-500.0,0.000387,11]
[342961592,1732229433481,-500.0,0.000387,11]
[342961593,1732229433490,-500.0,0.000387,11]
[342961594,1732229433499,-500.0,0.000387,11]
[342961595,1732229433728,-500.0,0.000387,11]
[342961596,1732229433746,-500.0,0.000387,11]
[342961597,1732229433761,-500.0,0.000387,11]
[342961598,1732229433770,-500.0,0.000387,11]
[342961599,1732229433781,-275.87469582,0.000387,11]
[342961600,1732229433791,-500.0,0.000387,11]
[342961601,1732229433801,-500.0,0.000387,11]
[342961602,1732229433810,-500.0,0.000387,11]
[342961603,1732229433820,-500.0,0.000387,11]
[342961604,1732229433830,-500.0,0.000387,11]
[342961605,1732229433840,-1765.22,0.000387,11]
[342961606,1732229433849,-500.0,0.000387,11]
[342961607,1732229433859,-500.0,0.000387,11]
[342961608,1732229433869,-500.0,0.000387,11]
[342961609,1732229433880,-500.0,0.000387,11]
[342961610,1732229433890,-500.0,0.000387,11]
[342961611,1732229433899,-500.0,0.000387,11]
[342961612,1732229433909,-508.94,0.000387,11]
[342961613,1732229433918,-500.0,0.000387,11]
[342961614,1732229433927,-500.0,0.000387,11]
[342961615,1732229433936,-174.1,0.000387,11]
[342961616,1732229433946,-343.0,0.000387,11]
[342961617,1732229433955,-481.41,0.000387,11]
[342961618,1732229433964,-500.0,0.000387,11]
[342961619,1732229433974,-537.91,0.000387,11]
[342961620,1732229433983,-500.0,0.000387,11]
[342961621,1732229433992,-500.0,0.000387,11]
[342961622,1732229434002,-500.0,0.000387,11]
[342961623,1732229434012,-505.97,0.000387,11]
[342961624,1732229434021,-500.0,0.000387,11]
[342961625,1732229434030,-500.0,0.000387,11]
[342961626,1732229434040,-500.0,0.000387,11]
[342961627,1732229434049,-500.0,0.000387,11]
[342961628,1732229434058,-2212.16,0.000387,11]
[342961629,1732229434067,-500.0,0.000387,11]
[342961630,1732229434076,-500.0,0.000387,11]
[342961631,1732229434085,-283.84,0.000387,11]
[342961632,1732229434094,-622.88,0.000387,11]
[342961633,1732229434103,-626.6,0.000387,11]
[342961634,1732229434112,-500.0,0.000387,11]
[342961635,1732229434121,-422.02,0.000387,11]
[342961636,1732229434131,-500.0,0.000387,11]
[342961637,1732229434141,-500.0,0.000387,11]
[342961638,1732229434150,-1607.83,0.000387,11]
[342961639,1732229434159,-500.0,0.000387,11]
[342961640,1732229434168,-500.0,0.000387,11]
[342961641,1732229434178,-500.0,0.000387,11]
[342961642,1732229434187,-500.0,0.000387,11]
[342961643,1732229434197,-500.0,0.000387,11]
[342961644,1732229434206,-500.0,0.000387,11]
[342961645,1732229434219,-291.16,0.000387,11]
[342961646,1732229434228,-500.0,0.000387,11]
[342961647,1732229434237,-247.3,0.000387,11]
[342961648,1732229434246,-500.0,0.000387,11]
[342961649,1732229434255,-500.0,0.000387,11]
[342961650,1732229434264,-151.0,0.00038701,14]
[342961651,1732229434274,-214.69,0.00038701,14]
[342961652,1732229434284,-151.0,0.00038701,14]
[342961653,1732229434294,-151.0,0.00038701,14]
[342961654,1732229434304,-175.712065,0.00038701,14]
[342961655,1732229434313,-175.712065,0.00038701,14]
[342961656,1732229434323,-100000.0,0.00038701,2]
[342961657,1732229434332,-381.77771521,0.00038701,2]
[342961658,1732229434341,-502.7508008,0.00038799,15]
[342961659,1732229434351,-500.0,0.00038799,15]
[342961660,1732229434360,-500.0,0.00038799,15]
[342961661,1732229434369,-500.0,0.00038799,15]
[342961662,1732229434378,-500.0,0.00038799,15]
[342961663,1732229434387,-500.0,0.00038799,15]
[342961664,1732229434396,-500.0,0.00038799,15]
[342961665,1732229434406,-500.0,0.00038799,15]
[342961666,1732229434416,-500.0,0.00038799,15]
[342961667,1732229434426,-500.0,0.00038799,15]
[342961668,1732229434435,-500.0,0.00038799,15]
[342961669,1732229434444,-500.0,0.00038799,15]
[342961670,1732229434453,-326.74405599,0.00038799,15]
[342961671,1732229434462,-500.0,0.00038799,15]
[342961672,1732229434472,-500.0,0.00038799,15]
[342961673,1732229434481,-500.0,0.00038799,15]
[342961674,1732229434491,-500.0,0.00038799,15]
[342961675,1732229434500,-500.0,0.00038799,15]
[342961676,1732229434510,-500.0,0.00038799,15]
[342961677,1732229434519,-500.0,0.00038799,15]
[342961678,1732229434529,-500.0,0.00038799,15]
[342961679,1732229434539,-500.0,0.00038799,15]
[342961680,1732229434548,-500.0,0.00038799,15]
[342961681,1732229434557,-500.0,0.00038799,15]
[342961682,1732229434567,-500.0,0.00038799,15]
[342961683,1732229434576,-500.0,0.00038799,15]
[342961684,1732229434585,-500.0,0.00038799,15]
[342961685,1732229434594,-500.0,0.00038799,15]
[342961686,1732229434604,-500.0,0.00038799,15]
[342961687,1732229434613,-500.0,0.00038799,15]
[342961688,1732229434623,-500.0,0.00038799,15]
[342961689,1732229434632,-500.0,0.00038799,15]
[342961690,1732229434641,-500.0,0.00038799,15]
[342961691,1732229434650,-500.0,0.00038799,15]
[342961692,1732229434659,-650.0,0.00038799,15]
[342961693,1732229434669,-500.0,0.00038799,15]
[342961694,1732229434678,-500.0,0.00038799,15]
[342961695,1732229434687,-500.0,0.00038799,15]
[342961696,1732229434697,-500.0,0.00038799,15]
[342961697,1732229434706,-1129.1724,0.000388,2]
[342961698,1732229434715,-464.69,0.000388,11]
[342961699,1732229434725,-272.8,0.000388,11]
[342961700,1732229434734,-500.0,0.000388,11]
[342961701,1732229434744,-455.07119364,0.000388,11]
[342961702,1732229434754,-500.0,0.000388,11]
[342961703,1732229434763,-377.0518914,0.000388,11]
[342961704,1732229434772,-500.0,0.000388,11]
[342961705,1732229434782,-500.0,0.000388,11]
[342961706,1732229434791,-500.0,0.000388,11]
[342961707,1732229434800,-500.0,0.000388,11]
[342961708,1732229434810,-500.0,0.000388,11]
[342961709,1732229434819,-500.0,0.000388,11]
[342961710,1732229434829,-500.0,0.000388,11]
[342961711,1732229434838,-500.0,0.000388,11]
[342961712,1732229434847,-500.0,0.000388,11]
[342961713,1732229434856,-500.0,0.000388,11]
[342961714,1732229434866,-500.0,0.000388,11]
[342961715,1732229434875,-500.0,0.000388,11]
[342961716,1732229434884,-500.0,0.000388,11]
[342961717,1732229434893,-88076.06992199,0.00038819,2]
[342961718,1732229434902,-15337.06762956,0.0003884,2]
[342961719,1732229434913,-7743.4369542,0.00038849,2]
[342961720,1732229434922,-13765.99701715,0.00038852,2]
[342961721,1732229434931,-88076.06992199,0.00038869,2]